bitfinex/quotes_SOLUSD_20240620
["timestamp","ask_amount","ask_price","bid_price","bid_amount"]
[1718878394836,52.14,137.22,137.16,7.14]
[1718878395213,45.0,137.22,137.16,7.14]
[1718878395428,7.2866,137.24,137.12,15.9842]
[1718878395429,45.0,137.23,137.12,15.9842]
[1718878395626,45.0,137.23,137.13,20.0]
[1718878395854,52.2872,137.23,137.12,15.9842]
[1718878397115,52.2872,137.23,137.13,20.0]
[1718878398638,52.2872,137.23,137.14,0.34]
[1718878398934,52.2872,137.23,137.15,0.34]
[1718878401828,45.0,137.23,137.15,0.34]
[1718878402129,45.0,137.24,137.16,0.34]
[1718878402328,45.0,137.24,137.17,0.34]
[1718878402531,52.2867,137.24,137.17,0.34]
[1718878402921,52.2867,137.24,137.17,0.17]
[1718878403328,7.2871,137.23,137.17,0.17]
[1718878403529,45.0,137.22,137.17,0.17]
[1718878403743,52.2876,137.22,137.12,15.9842]
[1718878404441,21.46,137.21,137.1,6.2923]
[1718878404644,45.0,137.2,137.1,6.2923]
[1718878406324,7.2897,137.18,137.1,6.2923]
[1718878406530,45.0,137.17,137.1,6.2923]
[1718878406731,45.0,137.18,137.1,6.2923]
[1718878407546,45.0,137.18,137.11,0.17]
[1718878407752,45.0,137.18,137.11,0.34]
[1718878409349,52.2897,137.18,137.11,0.34]
[1718878410454,7.2902,137.17,137.11,0.34]
[1718878411554,7.2902,137.17,137.1,0.17]
[1718878411763,7.2902,137.17,137.1,0.34]
[1718878412256,45.0,137.18,137.08,16.4872]
[1718878412257,7.2908,137.16,137.08,16.4872]
[1718878412431,45.0,137.15,137.08,16.4872]
[1718878413036,45.0,137.16,137.08,16.4872]
[1718878413346,52.2908,137.16,137.08,16.4872]
[1718878413555,52.2908,137.16,137.09,0.17]
[1718878413853,52.2908,137.16,137.09,0.34]
[1718878415430,52.2908,137.16,137.08,16.4872]
[1718878415431,7.2916,137.15,137.08,0.17]
[1718878415628,52.292,137.14,137.08,0.17]
[1718878415869,7.292,137.14,137.07,6.1845]
[1718878416865,7.2914,137.15,137.07,6.1845]
[1718878417070,45.0,137.14,137.07,6.1845]
[1718878417561,7.17,137.11,137.07,6.1845]
[1718878417763,7.17,137.11,137.08,0.17]
[1718878419137,7.29,137.18,137.08,7.34]
[1718878419332,7.17,137.14,137.1,0.17]
[1718878420851,7.2902,137.17,137.1,0.17]
[1718878421051,7.17,137.14,137.1,0.17]
[1718878421252,7.17,137.13,137.1,0.17]
[1718878421653,45.0,137.16,137.1,0.17]
[1718878422354,7.68,137.18,137.1,7.34]
[1718878422659,7.17,137.16,137.12,0.17]
[1718878422861,7.17,137.15,137.12,0.17]
[1718878423264,7.2895,137.19,137.12,0.17]
[1718878423464,7.17,137.15,137.12,0.17]
[1718878424362,7.2895,137.19,137.12,0.17]
[1718878424545,45.0,137.18,137.12,0.17]
[1718878424743,7.17,137.15,137.12,0.17]
[1718878425152,45.0,137.18,137.12,0.17]
[1718878425349,7.17,137.16,137.12,0.17]
[1718878425552,45.0,137.19,137.12,0.17]
[1718878425907,7.17,137.14,137.12,0.17]
[1718878426438,7.17,137.14,137.09,7.17]
[1718878426648,7.17,137.14,137.1,0.17]
[1718878426850,7.17,137.14,137.09,0.68]
[1718878427567,7.17,137.14,137.09,7.85]
[1718878427941,7.17,137.14,137.09,0.68]
[1718878429773,7.2899,137.18,137.09,0.68]
[1718878429971,7.17,137.14,137.09,7.85]
[1718878430170,7.17,137.14,137.09,0.68]
[1718878431273,45.0,137.19,137.09,0.68]
[1718878431479,7.17,137.15,137.09,7.85]
[1718878432275,7.17,137.14,137.09,7.85]
[1718878432650,52.2893,137.19,137.09,7.85]
[1718878432852,7.17,137.14,137.09,7.85]
[1718878433875,52.2893,137.19,137.09,7.85]
[1718878434057,7.17,137.15,137.11,0.17]
[1718878434256,7.17,137.15,137.11,0.34]
[1718878434666,7.17,137.15,137.11,0.17]
[1718878435059,52.2893,137.19,137.1,0.34]
[1718878435254,45.0,137.19,137.1,0.34]
[1718878435481,7.2896,137.18,137.1,0.34]
[1718878435663,7.17,137.15,137.1,0.34]
[1718878435854,7.2896,137.18,137.1,0.34]
[1718878436049,7.17,137.15,137.1,0.34]
[1718878437855,7.17,137.19,137.14,7.34]
[1718878438272,7.17,137.2,137.14,7.34]
[1718878438483,7.17,137.2,137.16,0.17]
[1718878438656,7.17,137.19,137.16,0.17]
[1718878438978,7.2873,137.23,137.16,0.17]
[1718878439180,7.17,137.19,137.16,0.17]
[1718878440486,7.2877,137.22,137.16,0.17]
[1718878440666,7.17,137.18,137.16,0.17]
[1718878442185,16.2433,137.25,137.15,7.51]
[1718878442371,7.17,137.21,137.16,0.34]
[1718878442571,7.17,137.21,137.17,0.34]
[1718878444779,7.2855,137.26,137.17,23.2824]
[1718878444979,7.17,137.22,137.19,0.17]
[1718878445183,7.2855,137.26,137.19,0.34]
[1718878445385,7.17,137.23,137.19,0.34]
[1718878445781,7.2855,137.26,137.19,0.34]
[1718878445986,7.17,137.23,137.19,0.34]
[1718878446379,7.2855,137.26,137.19,0.34]
[1718878446888,7.17,137.23,137.19,0.34]
[1718878449380,7.17,137.22,137.19,0.34]
[1718878451405,7.17,137.23,137.19,0.34]
[1718878453703,7.17,137.23,137.19,6.7315]
[1718878459299,7.285,137.27,137.19,6.7315]
[1718878459498,7.17,137.24,137.19,13.9015]
[1718878459700,7.2838,137.3,137.21,7.34]
[1718878459904,7.17,137.27,137.22,7.34]
[1718878460092,7.2835,137.3,137.23,0.17]
[1718878460287,7.2833,137.3,137.23,0.17]
[1718878460486,7.17,137.27,137.23,0.17]
[1718878460686,7.17,137.27,137.22,0.34]
[1718878462201,7.2849,137.27,137.21,0.17]
[1718878462410,7.17,137.24,137.21,0.17]
[1718878462590,7.17,137.24,137.21,0.34]
[1718878462796,7.17,137.22,137.19,6.3915]
[1718878463692,7.285,137.27,137.19,6.3915]
[1718878463992,7.17,137.23,137.19,6.3915]
[1718878464189,7.17,137.23,137.2,0.17]
[1718878464799,7.17,137.23,137.2,0.34]
[1718878465993,7.17,137.21,137.18,0.17]
[1718878466196,7.17,137.2,137.18,0.17]
[1718878466411,7.17,137.2,137.17,15.7724]
[1718878466891,7.287,137.23,137.17,15.7724]
[1718878467096,7.17,137.2,137.17,15.7724]
[1718878467516,7.2867,137.24,137.17,15.7724]
[1718878467698,7.17,137.2,137.17,15.7724]
[1718878468502,7.17,137.2,137.18,0.17]
[1718878469511,22.7575,137.25,137.18,0.17]
[1718878469715,7.17,137.21,137.18,0.17]
[1718878469898,7.17,137.22,137.18,0.68]
[1718878470710,15.4714,137.25,137.18,0.68]
[1718878470911,7.17,137.22,137.18,0.68]
[1718878471296,7.17,137.21,137.18,0.68]
[1718878471709,22.7574,137.25,137.18,0.68]
[1718878471926,7.17,137.21,137.18,0.68]
[1718878472713,22.7574,137.25,137.18,0.51]
[1718878472914,7.17,137.21,137.18,0.34]
[1718878473117,22.7575,137.25,137.18,0.34]
[1718878473310,7.17,137.21,137.18,0.34]
[1718878474416,7.17,137.22,137.18,0.34]
[1718878474596,22.7575,137.25,137.18,0.34]
[1718878474795,7.17,137.22,137.18,0.34]
[1718878475214,7.17,137.19,137.17,15.7724]
[1718878476019,7.2867,137.24,137.17,15.7724]
[1718878476218,7.17,137.2,137.17,15.7724]
[1718878476593,7.17,137.2,137.18,0.17]
[1718878478226,7.2867,137.24,137.18,0.17]
[1718878478406,7.17,137.2,137.18,0.17]
[1718878481221,7.17,137.19,137.15,0.17]
[1718878481402,7.17,137.18,137.14,6.2973]
[1718878482303,7.2877,137.22,137.14,6.2973]
[1718878482519,7.17,137.18,137.14,6.2973]
[1718878482733,7.17,137.18,137.15,0.34]
[1718878484815,7.17,137.19,137.15,0.34]
[1718878486921,7.17,137.2,137.16,0.51]
[1718878487226,7.17,137.2,137.17,0.34]
[1718878487521,7.17,137.2,137.17,0.17]
[1718878487726,7.17,137.2,137.16,0.17]
[1718878488027,7.17,137.2,137.16,0.34]
[1718878488232,7.17,137.2,137.16,0.68]
[1718878490536,7.17,137.2,137.16,0.34]
[1718878490736,7.17,137.19,137.16,0.17]
[1718878491042,7.17,137.19,137.15,0.17]
[1718878491043,7.17,137.19,137.15,0.68]
[1718878494536,7.17,137.21,137.15,0.68]
[1718878494846,7.17,137.22,137.17,0.17]
[1718878495032,7.17,137.22,137.17,0.68]
[1718878495538,7.17,137.22,137.17,0.34]
[1718878495728,7.17,137.21,137.17,0.17]
[1718878495908,7.17,137.21,137.16,0.17]
[1718878495909,7.17,137.21,137.16,0.68]
[1718878496641,15.4714,137.25,137.16,7.85]
[1718878496842,7.17,137.21,137.16,7.85]
[1718878497420,7.17,137.22,137.16,7.85]
[1718878499846,7.2845,137.28,137.2,0.17]
[1718878500043,7.17,137.25,137.2,0.34]
[1718878501858,7.17,137.22,137.2,0.17]
[1718878502146,7.17,137.21,137.17,15.4048]
[1718878502436,7.17,137.2,137.17,15.4048]
[1718878502839,7.17,137.21,137.17,15.4048]
[1718878503341,7.17,137.21,137.18,0.17]
[1718878503547,7.17,137.21,137.18,0.34]
[1718878503841,28.68,137.27,137.18,0.34]
[1718878504141,34.77625955,137.29,137.2,7.34]
[1718878504456,7.17,137.24,137.21,0.17]
[1718878504826,15.5977,137.29,137.2,20.34]
[1718878505023,259.8935,137.33,137.24,0.17]
[1718878505024,7.2828,137.31,137.24,0.17]
[1718878505335,7.17,137.28,137.24,0.17]
[1718878505531,7.17,137.28,137.24,0.34]
[1718878505738,7.2828,137.31,137.24,0.34]
[1718878505739,7.17,137.27,137.24,0.17]
[1718878505935,7.17,137.27,137.23,0.34]
[1718878506126,7.2828,137.31,137.23,0.34]
[1718878506324,7.17,137.27,137.23,0.34]
[1718878509222,7.17,137.28,137.23,0.34]
[1718878509429,7.17,137.31,137.25,7.34]
[1718878509641,7.17,137.31,137.26,0.17]
[1718878509845,7.17,137.3,137.26,0.17]
[1718878510555,23.5063,137.33,137.27,0.17]
[1718878510735,7.17,137.29,137.27,0.17]
[1718878511059,7.17,137.28,137.27,0.17]
[1718878511544,23.5061,137.33,137.27,0.17]
[1718878511545,7.17,137.3,137.27,0.17]
[1718878514335,7.2814,137.34,137.27,23.0948]
[1718878514538,7.2807,137.35,137.29,0.17]
[1718878514747,7.17,137.33,137.29,0.17]
[1718878515134,23.2711,137.36,137.29,0.17]
[1718878515338,7.2798,137.37,137.29,27.34]
[1718878515547,7.2785,137.39,137.31,0.17]
[1718878515748,7.17,137.36,137.31,7.34]
[1718878515969,7.17,137.36,137.32,0.17]
[1718878516140,7.17,137.38,137.33,23.4127]
[1718878516347,7.278,137.41,137.34,0.17]
[1718878516642,7.17,137.39,137.35,0.17]
[1718878516956,7.17,137.38,137.35,0.17]
[1718878517134,7.278,137.41,137.35,0.17]
[1718878517331,7.2771,137.42,137.35,0.17]
[1718878517532,253.4,137.44,137.37,0.17]
[1718878517745,253.4,137.44,137.37,0.68]
[1718878517746,7.17,137.42,137.37,0.68]
[1718878518049,253.4,137.44,137.37,0.68]
[1718878518251,7.17,137.41,137.37,0.68]
[1718878518450,253.4,137.44,137.37,0.68]
[1718878518634,7.17,137.41,137.37,0.68]
[1718878519352,260.676,137.44,137.37,0.68]
[1718878519666,21.4,137.43,137.37,0.17]
[1718878520036,21.4,137.43,137.36,0.68]
[1718878520342,253.4,137.44,137.36,0.68]
[1718878520550,7.2755,137.45,137.36,0.68]
[1718878521646,7.275,137.46,137.36,0.68]
[1718878521849,45.0,137.45,137.36,0.68]
[1718878522053,45.0,137.46,137.36,0.68]
[1718878522572,7.2756,137.45,137.36,0.68]
[1718878522868,21.4,137.44,137.35,20.0]
[1718878523172,7.2753,137.45,137.35,20.0]
[1718878523635,28.675,137.46,137.35,20.0]
[1718878524051,28.675,137.46,137.36,0.68]
[1718878525438,21.4,137.46,137.38,0.17]
[1718878525650,21.4,137.46,137.38,0.68]
[1718878526363,28.6748,137.46,137.38,0.68]
[1718878526743,45.0,137.45,137.38,0.68]
[1718878528458,45.0,137.45,137.38,0.51]
[1718878529365,7.2759,137.44,137.37,15.1276]
[1718878529659,52.2764,137.43,137.37,15.1276]
[1718878529842,45.0,137.42,137.37,15.1276]
[1718878530241,7.2761,137.44,137.37,15.1276]
[1718878530242,45.0,137.43,137.37,15.1276]
[1718878530455,45.0,137.43,137.34,21.4217]
[1718878530456,7.278,137.4,137.34,21.4217]
[1718878530839,7.2775,137.41,137.34,21.4217]
[1718878531039,21.4,137.42,137.34,21.4217]
[1718878532046,21.4,137.42,137.35,0.68]
[1718878533053,45.0,137.43,137.35,0.68]
[1718878534073,7.2755,137.45,137.35,0.68]
[1718878534359,7.2755,137.45,137.35,20.68]
[1718878536262,7.275,137.46,137.35,20.68]
[1718878536449,7.2754,137.45,137.35,20.68]
[1718878537343,7.275,137.46,137.35,20.68]
[1718878537558,7.275,137.46,137.38,6.0325]
[1718878537763,7.275,137.46,137.39,0.68]
[1718878538346,21.4,137.47,137.39,0.68]
[1718878538850,7.2748,137.46,137.39,0.68]
[1718878541169,7.2765,137.43,137.38,6.0325]
[1718878541351,7.2757,137.45,137.38,6.0325]
[1718878542046,7.277,137.42,137.38,6.0325]
[1718878542241,18.1883,137.46,137.38,6.0325]
[1718878542445,45.0,137.45,137.38,6.0325]
[1718878542647,7.2765,137.43,137.38,6.0325]
[1718878543054,7.2759,137.44,137.38,6.0325]
[1718878543456,7.2766,137.43,137.38,6.0325]
[1718878544073,7.2761,137.44,137.38,6.0325]
[1718878544269,45.0,137.43,137.38,6.0325]
[1718878545053,45.0,137.43,137.36,16.0478]
[1718878545253,7.2777,137.41,137.36,16.0478]
[1718878545552,7.2771,137.42,137.36,16.0478]
[1718878545874,52.2775,137.41,137.36,16.0478]
[1718878548673,7.2783,137.4,137.36,16.0478]
[1718878551574,52.2776,137.41,137.36,16.0478]
[1718878552063,7.2771,137.42,137.37,0.17]
[1718878555382,45.37599046,137.44,137.37,0.17]
[1718878555383,5.78629046,137.44,137.37,0.17]
[1718878555565,7.2765,137.43,137.37,0.34]
[1718878555766,7.277,137.42,137.37,0.34]
[1718878557363,7.2765,137.43,137.37,0.34]
[1718878558079,28.6758,137.45,137.37,0.34]
[1718878558283,52.2761,137.44,137.37,0.34]
[1718878558861,7.2769,137.42,137.37,0.34]
[1718878559370,7.14,137.4,137.37,0.34]
[1718878559876,7.14,137.39,137.37,0.34]
[1718878560184,7.14,137.39,137.37,0.17]
[1718878560377,7.2769,137.42,137.37,0.17]
[1718878560563,7.14,137.4,137.37,0.34]
[1718878561005,52.2759,137.44,137.37,0.34]
[1718878561286,7.14,137.41,137.37,0.34]
[1718878561472,7.2755,137.45,137.37,0.34]
[1718878561679,7.14,137.42,137.37,7.48]
[1718878562485,7.14,137.42,137.37,0.34]
[1718878563169,7.2755,137.45,137.37,0.34]
[1718878563372,7.14,137.42,137.37,0.34]
[1718878564084,7.275,137.46,137.38,0.34]
[1718878564389,7.14,137.43,137.39,0.34]
[1718878564691,7.14,137.45,137.42,0.17]
[1718878564865,7.14,137.45,137.42,0.34]
[1718878566066,7.2743,137.47,137.42,0.17]
[1718878566261,7.14,137.44,137.42,0.17]
[1718878566775,35.8339,137.48,137.42,0.17]
[1718878567073,7.2734,137.49,137.42,0.34]
[1718878567274,7.14,137.45,137.42,0.34]
[1718878567475,7.2729,137.5,137.42,0.34]
[1718878567662,259.4922,137.51,137.42,0.34]
[1718878567663,7.14,137.44,137.42,0.34]
[1718878567863,7.2735,137.49,137.42,0.34]
[1718878568074,7.14,137.45,137.42,0.34]
[1718878568383,28.56,137.48,137.42,0.34]
[1718878568563,7.14,137.45,137.42,0.34]
[1718878569374,35.8338,137.48,137.42,0.34]
[1718878569570,28.56,137.48,137.42,0.34]
[1718878569876,7.14,137.44,137.42,0.34]
[1718878570072,7.14,137.44,137.42,0.17]
[1718878570796,28.56,137.48,137.42,0.34]
[1718878570965,28.56,137.48,137.42,0.17]
[1718878571294,7.14,137.45,137.42,0.34]
[1718878571673,7.2729,137.5,137.42,0.34]
[1718878571865,7.14,137.46,137.42,0.34]
[1718878575690,52.2733,137.49,137.42,0.34]
[1718878576091,22.7684,137.52,137.44,0.17]
[1718878576386,22.7684,137.52,137.44,7.31]
[1718878576566,280.84143596,137.55,137.47,0.17]
[1718878576761,7.14,137.51,137.47,0.17]
[1718878576967,21.5561,137.55,137.47,0.17]
[1718878577168,7.14,137.52,137.47,0.34]
[1718878577473,7.14,137.52,137.47,7.48]
[1718878578175,7.2702,137.55,137.47,7.48]
[1718878578490,7.2691,137.57,137.5,0.17]
[1718878578663,7.14,137.54,137.5,0.17]
[1718878579088,7.2685,137.58,137.5,0.34]
[1718878579278,29.6959256,137.59,137.52,0.17]
[1718878579490,29.6959256,137.59,137.52,0.34]
[1718878580296,22.4277256,137.59,137.51,16.4991]
[1718878580493,7.2691,137.57,137.51,16.4991]
[1718878581086,7.2686,137.58,137.51,16.4991]
[1718878581396,45.0,137.57,137.51,16.4991]
[1718878581782,45.0,137.57,137.52,0.17]
[1718878582386,7.2679,137.59,137.52,0.17]
[1718878582593,45.41363477,137.61,137.52,0.68]
[1718878582594,13.15243477,137.61,137.52,0.68]
[1718878582987,7.2676,137.6,137.52,0.68]
[1718878583590,21.36,137.63,137.52,0.68]
[1718878583778,7.2672,137.61,137.52,0.68]
[1718878583984,45.0,137.6,137.52,0.68]
[1718878584299,52.2674,137.6,137.52,0.68]
[1718878585177,45.0,137.6,137.52,0.68]
[1718878585581,52.2669,137.61,137.52,0.68]
[1718878585780,7.2685,137.58,137.52,0.34]
[1718878586181,7.2696,137.56,137.51,16.4991]
[1718878586387,21.36,137.6,137.51,16.4991]
[1718878586691,7.2687,137.58,137.51,16.4991]
[1718878586890,7.2691,137.57,137.51,16.4991]
[1718878587083,7.2686,137.58,137.51,16.4991]
[1718878587272,52.2683,137.59,137.51,16.4991]
[1718878587476,52.2683,137.59,137.52,0.34]
[1718878588119,0.34,137.58,137.51,16.4991]
[1718878588399,7.2701,137.55,137.51,16.4991]
[1718878588772,7.2697,137.56,137.51,16.4991]
[1718878588981,45.0,137.55,137.51,16.4991]
[1718878589179,28.6292,137.57,137.51,16.4991]
[1718878589380,45.0,137.56,137.51,16.4991]
[1718878590479,7.2701,137.55,137.51,16.4991]
[1718878591592,45.0,137.56,137.51,16.4991]
[1718878591992,21.36,137.57,137.51,16.4991]
[1718878592294,7.2681,137.59,137.52,0.17]
[1718878592491,45.0,137.58,137.52,0.17]
[1718878592696,7.2681,137.59,137.52,0.17]
[1718878592874,7.2681,137.59,137.52,0.34]
[1718878593785,7.2676,137.6,137.54,0.17]
[1718878594108,7.2676,137.6,137.54,0.34]
[1718878595702,39.527,137.62,137.52,0.17]
[1718878595904,7.2689,137.58,137.52,0.34]
[1718878596782,7.2682,137.59,137.52,0.34]
[1718878596993,52.2686,137.58,137.52,0.34]
[1718878597917,45.0,137.58,137.52,0.34]
[1718878599908,7.2682,137.59,137.52,0.34]
[1718878603316,7.2675,137.6,137.52,0.34]
[1718878603507,7.12,137.57,137.55,6.3668]
[1718878603707,7.12,137.58,137.55,6.3668]
[1718878604722,7.2674,137.6,137.55,6.3668]
[1718878604913,7.12,137.59,137.56,16.5787]
[1718878605303,7.267,137.61,137.56,16.5787]
[1718878605905,7.12,137.6,137.56,16.5787]
[1718878606215,7.2659,137.63,137.57,0.17]
[1718878606419,7.12,137.61,137.57,0.34]
[1718878607219,7.2648,137.65,137.57,0.34]
[1718878607399,7.2653,137.64,137.59,0.17]
[1718878607609,7.2649,137.65,137.59,0.34]
[1718878608824,7.2653,137.64,137.59,0.34]
[1718878609905,7.2649,137.65,137.59,0.34]
[1718878610335,7.2644,137.66,137.59,0.34]
[1718878610830,21.34,137.67,137.57,0.17]
[1718878611037,21.34,137.67,137.57,0.34]
[1718878611406,7.266,137.63,137.57,0.34]
[1718878612404,7.2654,137.64,137.57,0.34]
[1718878613004,18.1619,137.66,137.57,0.34]
[1718878613223,21.34,137.63,137.56,16.5787]
[1718878613420,21.34,137.64,137.56,16.5787]
[1718878613609,45.0,137.63,137.56,16.5787]
[1718878614407,45.0,137.63,137.57,0.34]
[1718878615119,21.34,137.64,137.57,0.34]
[1718878615500,21.34,137.64,137.58,0.51]
[1718878615707,7.2644,137.66,137.59,0.17]
[1718878615915,7.2648,137.65,137.59,0.17]
[1718878617815,7.2644,137.66,137.59,0.34]
[1718878625343,7.2628,137.69,137.62,0.34]
[1718878625917,34.08102538,137.71,137.62,0.34]
[1718878626119,274.74,137.72,137.65,0.17]
[1718878626418,7.2624,137.7,137.65,0.34]
[1718878626719,274.74,137.72,137.65,0.17]
[1718878626720,7.2616,137.71,137.65,0.17]
[1718878626921,7.2616,137.71,137.65,0.34]
[1718878627124,7.2616,137.71,137.64,6.1705]
[1718878627343,274.74,137.72,137.64,6.1705]
[1718878627519,7.2631,137.69,137.64,6.1705]
[1718878629640,7.11,137.66,137.64,6.1705]
[1718878630221,7.2621,137.7,137.64,6.1705]
[1718878630421,253.4,137.72,137.64,6.1705]
[1718878630422,7.11,137.67,137.64,6.1705]
[1718878631324,253.4,137.72,137.64,6.1705]
[1718878631325,7.11,137.68,137.65,15.6034]
[1718878631845,7.11,137.67,137.65,15.6034]
[1718878633342,7.11,137.67,137.65,15.4334]
[1718878633528,7.11,137.66,137.65,15.4334]
[1718878633941,7.2622,137.7,137.65,15.4334]
[1718878634242,7.11,137.68,137.65,15.4334]
[1718878634441,7.11,137.67,137.65,15.4334]
[1718878635443,7.11,137.68,137.66,0.17]
[1718878636151,7.11,137.69,137.66,0.17]
[1718878636557,253.4,137.72,137.66,0.17]
[1718878636855,7.11,137.7,137.66,0.34]
[1718878637551,7.2606,137.73,137.66,0.34]
[1718878637759,7.11,137.69,137.66,0.34]
[1718878638053,7.11,137.7,137.66,0.34]
[1718878638255,7.2606,137.73,137.66,0.34]
[1718878638457,7.11,137.7,137.66,0.34]
[1718878639554,7.11,137.69,137.66,0.34]
[1718878639742,7.11,137.69,137.66,0.17]
[1718878640146,7.2609,137.73,137.66,0.17]
[1718878640339,7.11,137.69,137.66,0.17]
[1718878640535,7.11,137.7,137.66,0.51]
[1718878640757,7.11,137.7,137.67,0.17]
[1718878640954,7.2598,137.75,137.67,0.17]
[1718878641255,7.11,137.7,137.67,0.17]
[1718878641754,52.2601,137.74,137.67,0.17]
[1718878641755,45.0,137.74,137.67,0.17]
[1718878641951,7.11,137.7,137.67,0.17]
[1718878642151,15.2095,137.76,137.68,0.17]
[1718878642361,7.11,137.72,137.68,0.51]
[1718878642657,7.11,137.72,137.69,0.17]
[1718878643580,22.4688,137.76,137.69,0.17]
[1718878643743,7.11,137.72,137.69,0.17]
[1718878644537,45.0,137.75,137.69,0.17]
[1718878644948,7.11,137.72,137.69,0.17]
[1718878645842,7.11,137.72,137.68,0.51]
[1718878645843,7.11,137.72,137.68,0.17]
[1718878646036,7.11,137.7,137.68,0.17]
[1718878646242,7.11,137.7,137.65,22.5434]
[1718878647051,7.2601,137.74,137.65,22.5434]
[1718878647255,20.95697863,137.79,137.66,6.5442]
[1718878647566,28.44,137.76,137.68,0.17]
[1718878647741,7.11,137.72,137.68,0.17]
[1718878648142,7.11,137.71,137.68,0.17]
[1718878649442,7.2596,137.75,137.68,0.17]
[1718878649642,45.0,137.74,137.68,0.17]
[1718878649853,7.11,137.71,137.68,0.17]
[1718878652081,30.42185127,137.78,137.68,0.17]
[1718878652082,6.4199,137.78,137.68,7.28]
[1718878652250,7.11,137.74,137.7,0.17]
[1718878652871,7.11,137.74,137.7,16.0184]
[1718878653066,7.11,137.74,137.71,0.17]
[1718878653664,7.2581,137.78,137.71,0.17]
[1718878653876,7.11,137.74,137.71,0.17]
[1718878655548,7.11,137.74,137.7,16.0184]
[1718878660384,5.85031375,137.79,137.7,16.0184]
[1718878660562,7.11,137.73,137.7,16.0184]
[1718878660870,7.259,137.76,137.7,15.8484]
[1718878660871,7.11,137.71,137.7,15.8484]
[1718878661484,7.11,137.72,137.7,15.8484]
[1718878662375,7.11,137.71,137.7,15.8484]
[1718878662562,7.11,137.72,137.7,15.8484]
[1718878662962,7.11,137.71,137.68,6.6027]
[1718878663668,7.11,137.7,137.66,16.1786]
[1718878663865,7.11,137.68,137.66,16.1786]
[1718878664462,29.12646991,137.75,137.66,16.1786]
[1718878664671,7.11,137.71,137.66,16.1786]
[1718878665283,7.11,137.71,137.67,0.34]
[1718878666579,7.2601,137.74,137.67,0.34]
[1718878666772,7.11,137.71,137.67,0.34]
[1718878669063,7.259,137.76,137.69,0.17]